[Event "45th FIDE Womens Olympiad 2024"]
[Site "Budapest"]
[Date "2024.09.12"]
[Round "2.11"]
[White "Milovic, Aleksandra"]
[Black "Khotenashvili, Bella"]
[Result "0-1"]
[ECO "B19"]
[WhiteElo "2121"]
[BlackElo "2432"]
[Annotator "RC"]
[PlyCount "116"]
[EventDate "2024.09.05"]
[EventType "team-tourn"]
[EventCountry "HUN"]
[SourceTitle "playchess.com"]
[Source "ChessBase"]
[SourceQuality "1"]
[WhiteTeam "Montenegro"]
[BlackTeam "Georgia"]
[WhiteTeamCountry "MNE"]
[BlackTeamCountry "GEO"]
[TimeControl "40/5400+30:1800+30"]

1. e4 {[%emt 0:00:14]} c6 {[%emt 0:00:14]} 2. d4 {[%emt 0:00:26]} d5 {[%emt 0:00:05]} 3. Nc3 {[%emt 0:00:38]} dxe4 {[%emt 0:00:18]} 4. Nxe4 {[%emt 0:00:08]} Bf5 {[%emt 0:01:22]} 5. Ng3 {[%emt 0:00:36]} Bg6 {[%emt 0:00:05]} 6. Nf3 {[%emt 0:00:58]} Nd7 {[%emt 0:03:09]} 7. h4 {[%emt 0:00:11]} h6 {[%emt 0:00:24]} 8. h5 {[%emt 0:00:52]} Bh7 {[%emt 0:00:05]} 9. Bd3 {[%emt 0:00:05]} Bxd3 {[%emt 0:00:04]} 10. Qxd3 {[%emt 0:00:04]} e6 {[%emt 0:00:05]} 11. Bf4 {[%emt 0:03:30]} Bb4+ {[%emt 0:02:16]} 12. c3 {[%emt 0:03:49]} Be7 {[%emt 0:00:09]} 13. Ne4 {[%emt 0:03:25]} Ndf6 {[%emt 0:01:28]} 14. Ne5 {[%emt 0:07:06]} Nxe4 {[%emt 0:02:04]} 15. Qxe4 {[%emt 0:03:13]} Nf6 {[%emt 0:01:50]} 16. Qe2 {[%emt 0:06:56]} Qd5 {[%emt 0:11:19]} 17. O-O {[%emt 0:01:39]} O-O {[%emt 0:07:35]} 18. Rfd1 {[%emt 0:08:53]} Rad8 {[%emt 0:07:01]} 19. c4 {[%emt 0:13:22]} Qe4 {[%emt 0:00:45]} 20. Qxe4 {[%emt 0:01:16]} Nxe4 {[%emt 0:00:02]} 21. Rd3 {[%emt 0:05:09]} Bd6 {[%emt 0:09:31]} 22. Rad1 {[%emt 0:10:15]} Nf6 {[%emt 0:02:54]} 23. Rh3 {[%emt 0:19:18]} c5 {[%emt 0:06:03]} 24. Rhd3 {[%emt 0:02:27]} cxd4 {[%emt 0:23:45]} 25. Rxd4 {[%emt 0:00:10]} Bc7 {[%emt 0:03:22]} 26. Rxd8 {[%emt 0:00:08]} Rxd8 {[%emt 0:00:17]} 27. Rxd8+ {[%emt 0:00:05]} Bxd8 {[%emt 0:00:03]} 28. g4 {[%emt 0:01:59]} Bb6 {[%emt 0:03:04]} 29. b4 {[%emt 0:01:55]} Bd4 {[%emt 0:01:09]} 30. b5 {[%emt 0:03:20]} Kf8 {[%emt 0:04:02]} 31. Nf3 {[%emt 0:00:32]} Bc5 {[%emt 0:01:09]} 32. Ne5 {[%emt 0:00:30]} Ke7 {[%emt 0:01:29]} 33. g5 {[%emt 0:00:47]} Nxh5 {[%emt 0:03:53]} 34. gxh6 {[%emt 0:00:05]} gxh6 {[%emt 0:00:35]} 35. Bxh6 {[%emt 0:00:05]} Bd4 {[%emt 0:01:00]} 36. Nf3 {[%emt 0:01:27]} Bc5 {[%emt 0:02:56]} 37. Kf1 {[%emt 0:00:16]} f5 {[%emt 0:00:47]} 38. Ke2 {[%emt 0:00:50]} f4 {[%emt 0:01:03]} 39. Bg5+ {[%emt 0:00:59]} Kd6 {[%emt 0:00:24]} 40. Ne1 {[%emt 0:01:13]} e5 {[%emt 0:01:40]} 41. Nd3 {[%emt 0:04:09]} Bd4 {[%emt 0:08:59]} 42. Kf3 {[%emt 0:02:13]} Ng7 {[%emt 0:06:04]} 43. Ke4 {[%emt 0:15:26]} Ne6 {[%emt 0:00:18]} 44. Bf6 {[%emt 0:00:43]} Nc5+ {[%emt 0:00:37]} 45. Nxc5 {[%emt 0:00:07]} Kxc5 {[%emt 0:00:03]} 46. Bxe5 {[%emt 0:00:11]} Bxf2 {[%emt 0:00:48]} 47. Kd3 {[%emt 0:00:53]} f3 {[%emt 0:03:12]} 48. Bb8 {[%emt 0:00:29]} b6 {[%emt 0:07:07]} 49. Bxa7 {[%emt 0:01:18]} Bd4 {[%emt 0:00:36]} 50. a4 {[%emt 0:06:24]} f2 {[%emt 0:00:07]} 51. Ke2 {[%emt 0:01:21]} Kb4 {[%emt 0:01:02]} 52. Bb8 {[%emt 0:01:08]} Bc5 {[%emt 0:03:47]} 53. Bg3 {[%emt 0:01:45]} Kxa4 {[%emt 0:00:17]} 54. Bxf2 {[%emt 0:00:23]} Bxf2 {[%emt 0:00:03]} 55. Kxf2 {[%emt 0:00:05]} Kb4 {[%emt 0:00:03]} 56. Ke3 {[%emt 0:00:21]} Kxc4 {[%emt 0:00:05]} 57. Kd2 {[%emt 0:00:05]} Kxb5 {[%emt 0:00:03]} 58. Kc3 {[%emt 0:00:05]} Ka4 {[%emt 0:00:04]} 0-1

[Event "45th FIDE Womens Olympiad 2024"]
[Site "Budapest"]
[Date "2024.09.12"]
[Round "2.12"]
[White "Melia, Salome"]
[Black "Koljevic, Nikolina"]
[Result "0-1"]
[ECO "B67"]
[WhiteElo "2293"]
[BlackElo "2030"]
[Annotator "ChessBase"]
[PlyCount "74"]
[EventDate "2024.09.05"]
[EventType "team-tourn"]
[EventCountry "HUN"]
[SourceTitle "playchess.com"]
[Source "ChessBase"]
[SourceQuality "1"]
[WhiteTeam "Georgia"]
[BlackTeam "Montenegro"]
[WhiteTeamCountry "GEO"]
[BlackTeamCountry "MNE"]
[TimeControl "40/5400+30:1800+30"]

1. e4 {[%emt 0:00:03]} c5 {[%emt 0:00:08]} 2. Nf3 {[%emt 0:00:06]} d6 {[%emt 0:00:07]} 3. d4 {[%emt 0:01:01]} cxd4 {[%emt 0:00:13]} 4. Nxd4 {[%emt 0:00:02]} Nf6 {[%emt 0:00:18]} 5. Nc3 {[%emt 0:00:05]} Nc6 {[%emt 0:00:15]} 6. Bg5 {[%emt 0:00:58]} e6 {[%emt 0:00:57]} 7. Qd2 {[%emt 0:00:09]} a6 {[%emt 0:00:52]} 8. O-O-O {[%emt 0:00:24]} Bd7 {[%emt 0:00:54]} 9. f3 {[%emt 0:04:28]} Nxd4 {[%emt 0:05:40]} 10. Qxd4 {[%emt 0:00:28]} h6 {[%emt 0:00:34]} 11. Be3 {[%emt 0:04:12]} Bc6 {[%emt 0:02:45]} 12. g4 {[%emt 0:03:28]} d5 {[%emt 0:06:11]} 13. e5 {[%emt 0:12:09]} Nd7 {[%emt 0:00:51]} 14. Be2 {[%emt 0:14:06]} Bc5 {[%emt 0:11:06]} 15. Qd2 {[%emt 0:00:28]} Bxe3 {[%emt 0:04:27]} 16. Qxe3 {[%emt 0:00:02]} Qc7 {[%emt 0:00:14]} 17. f4 {[%emt 0:01:30]} d4 {[%emt 0:02:53]} 18. Qxd4 {[%emt 0:00:08]} Bxh1 {[%emt 0:00:13]} 19. Rxh1 {[%emt 0:00:10]} Rc8 {[%emt 0:11:06]} 20. h4 {[%emt 0:04:40]} b5 {[%emt 0:10:48]} 21. a3 {[%emt 0:11:21]} Ke7 {[%emt 0:14:52]} 22. Kb1 {[%emt 0:12:23]} Rhd8 {[%emt 0:02:29]} 23. g5 {[%emt 0:10:10]} Nc5 {[%emt 0:02:12]} 24. Qb4 {[%emt 0:03:56]} a5 {[%emt 0:09:15]} 25. Qxb5 {[%emt 0:00:17]} Rd4 {[%emt 0:00:34]} 26. gxh6 {[%emt 0:09:14]} gxh6 {[%emt 0:00:23]} 27. Bf3 {[%emt 0:03:33]} Rxf4 {[%emt 0:01:04]} 28. Qe2 {[%emt 0:00:11]} Nd7 {[%emt 0:04:08]} 29. Re1 {[%emt 0:01:05]} Rb8 {[%emt 0:02:28]} 30. Bd5 {[%emt 0:03:46]} Qxc3 {[%emt 0:00:51]} 31. Bb3 {[%emt 0:00:22]} Qc5 {[%emt 0:00:48]} 32. Qd2 {[%emt 0:00:36]} Rf2 {[%emt 0:01:16]} 33. Qd3 {[%emt 0:00:53]} Nxe5 {[%emt 0:01:24]} 34. Qg3 {[%emt 0:00:14]} Rf5 {[%emt 0:03:40]} 35. Qg7 {[%emt 0:00:41]} Nc4 {[%emt 0:00:34]} 36. Qxh6 {[%emt 0:00:34]} a4 {[%emt 0:00:35]} 37. Bxc4 {[%emt 0:00:30]} Qxc4 {[%emt 0:00:07]} 0-1

[Event "45th FIDE Womens Olympiad 2024"]
[Site "Budapest"]
[Date "2024.09.12"]
[Round "2.13"]
[White "Kashlinskaya, Alina"]
[Black "Librelato, Kathie Goulart"]
[Result "1-0"]
[ECO "D31"]
[WhiteElo "2490"]
[BlackElo "2181"]
[Annotator "TA"]
[PlyCount "55"]
[EventDate "2024.09.05"]
[EventType "team-tourn"]
[EventCountry "HUN"]
[SourceTitle "playchess.com"]
[Source "ChessBase"]
[SourceQuality "1"]
[WhiteTeam "Poland"]
[BlackTeam "Brazil"]
[WhiteTeamCountry "POL"]
[BlackTeamCountry "BRA"]
[TimeControl "40/5400+30:1800+30"]

{[%evp 9,55,18,46,-7,-10,0,24,20,14,24,18,-11,0,-8,-11,-69,-60,-57,-66,-81,-36,-54,39,25,45,25,35,29,137,145,144,149,122,137,209,210,208,218,203,220,366,404,408,420,419,404,692,670]} 1. d4 {[%emt 0:00:03]} d5 {[%emt 0:00:04]} 2. c4 {[%emt 0:00:06]} e6 {[%emt 0:00:04]} 3. Nc3 {[%emt 0:00:09]} c6 {[%emt 0:00:05]} 4. e4 {[%emt 0:00:07]} dxe4 {[%emt 0:00:05]} 5. Nxe4 {[%emt 0:00:04]} c5 {[%emt 0:00:06]} 6. Be3 {[%emt 0:13:48]} (6. Nf3 $14) 6... cxd4 $11 {[%emt 0:06:28]} 7. Bxd4 {[%emt 0:14:00]} Nc6 {[%emt 0:15:18]} 8. Bc3 {[%emt 0:00:19] White has an edge.} Qxd1+ {[%emt 0:17:42]} 9. Rxd1 {[%emt 0:00:07]} e5 {[%emt 0:00:03]} 10. c5 {[%emt 0:10:04]} Be6 {[%emt 0:03:49]} 11. Bb5 {[%emt 0:02:46]} Nf6 {[%emt 0:23:06]} 12. Nxf6+ {[%emt 0:25:11]} (12. Nd6+ $11 Bxd6 13. cxd6) 12... gxf6 $15 {[%emt 0:00:05]} 13. b4 {[%emt 0:00:10]} Rg8 {[%emt 0:05:27]} 14. Ne2 {[%emt 0:00:48][%cal Bg1e2,Be2g3,Bg3e4][%mdl 32]} a5 {[%emt 0:14:09]} (14... Bxa2 15. O-O $15) 15. bxa5 {[%emt 0:08:05][%cal Oa5a6]} Bd7 {[%emt 0:03:56]} ({Black should play} 15... Rxg2 $15 16. Ng3 (16. a6 Rxa6 17. Bxa6 bxa6 $17) 16... Bxc5) 16. Ng3 {[%emt 0:02:30]} Bxc5 {[%emt 0:01:46]} 17. Ne4 {[%emt 0:00:21][%csl LRc5,LRf6]} Be7 {[%emt 0:00:15][%cal Og8g4]} 18. O-O {[%emt 0:00:52]} Rg6 {[%emt 0:04:03]} (18... Rd8 $11 {remains equal.}) 19. Nd6+ $16 {[%emt 0:06:34]} Bxd6 {[%emt 0:00:02]} 20. Rxd6 {[%emt 0:00:04]} f5 {[%emt 0:00:18]} 21. Rd5 $36 {[%emt 0:06:04][%mdl 2048] Keeping Black busy. White is more active.} Ke7 {[%emt 0:02:08] [#]} (21... Be6 $16 {was worth a try.} 22. Rc5 (22. Rxe5 O-O-O $16) (22. Bxc6+ bxc6 23. Rxe5 O-O-O $16) 22... Kf8) 22. Bb4+ $1 $18 {[%emt 0:03:03][%mdl 512]} Nxb4 {[%emt 0:00:54]} 23. Rxd7+ {[%emt 0:00:01]} Kf8 {[%emt 0:00:13]} 24. Bc4 {[%emt 0:01:18]} (24. Rxb7 $6 Rxa5 25. Bc4 Nd5 $16) 24... Rxa5 {[%emt 0:01:41]} (24... Rc6 $142 25. Rxf7+ (25. Bxf7 Rxa5 26. Rxb7 Nxa2 $16) 25... Ke8) 25. Rxf7+ {[%emt 0:00:05]} ({Not} 25. Bxf7 Rg7 26. Rb1 Rxf7 $15) 25... Ke8 {[%emt 0:00:03]} 26. Rxb7 {[%emt 0:00:10]} ({Less strong is} 26. Rxh7 Rc6 $18) 26... Nd5 {[%emt 0:00:50]} 27. Rd1 {[%emt 0:00:45]} ({Resist} 27. Rxh7 Rc5 $18) 27... Rb6 {[%emt 0:00:32]} (27... Rd6 $142 28. Rxh7 Rc6) 28. Rxd5 {[%emt 0:01:22] Weighted Error Value: White=0.14 (very precise) /Black=0.44.  Mistake:       	White=1     	Black=5      Inaccurate:     	White=1     	Black=1      OK:         	White=7     	Black=7      Best:        	White=5     	Black=4      Brilliant:      	White=1     	---} 1-0

[Event "45th FIDE Womens Olympiad 2024"]
[Site "Budapest"]
[Date "2024.09.12"]
[Round "2.13"]
[White "Lima, Izidora Lourenco"]
[Black "Kaslan, Catherine"]
[Result "0-1"]
[ECO "B87"]
[WhiteElo "1579"]
[BlackElo "1902"]
[Annotator "NA"]
[PlyCount "72"]
[EventDate "2024.09.05"]
[EventType "team-tourn"]
[EventCountry "HUN"]
[SourceTitle "playchess.com"]
[Source "ChessBase"]
[SourceQuality "1"]
[WhiteTeam "Sao Tome and Principe"]
[BlackTeam "Suriname"]
[WhiteTeamCountry "SAO"]
[BlackTeamCountry "SUR"]
[TimeControl "40/5400+30:1800+30"]

1. e4 c5 2. Nf3 d6 3. Bc4 e6 4. Nc3 Nf6 5. d4 cxd4 6. Nxd4 a6 7. Bb3 Be7 8. O-O O-O 9. Be3 b5 10. f3 Qc7 11. Qd2 Nc6 12. Rad1 Na5 13. Rfe1 Nc4 14. Qc1 Bb7 15. Bxc4 Qxc4 16. Nb3 Qc7 17. Rd3 Rac8 18. a3 Rfd8 19. Qd2 Nd7 20. f4 Nf6 21. Bf2 d5 22. e5 Ne4 23. Qe2 Nc5 24. Nxc5 Bxc5 25. Bd4 Bxd4+ 26. Rxd4 Qb6 27. Red1 Rc4 28. Qf2 Rdc8 29. Rxc4 Qxf2+ 30. Kxf2 bxc4 31. Ne2 f6 32. c3 fxe5 33. fxe5 Rf8+ 34. Ke3 Rf5 35. Kd4 Rf2 36. Ke3 Rxg2 0-1

[Event "45th FIDE Womens Olympiad 2024"]
[Site "Budapest"]
[Date "2024.09.12"]
[Round "2.14"]
[White "Alboredo, Julia"]
[Black "Maltsevskaya, Aleksandra"]
[Result "0-1"]
[ECO "B13"]
[WhiteElo "2127"]
[BlackElo "2404"]
[Annotator "TA"]
[PlyCount "80"]
[EventDate "2024.09.05"]
[EventType "team-tourn"]
[EventCountry "HUN"]
[SourceTitle "playchess.com"]
[Source "ChessBase"]
[SourceQuality "1"]
[WhiteTeam "Brazil"]
[BlackTeam "Poland"]
[WhiteTeamCountry "BRA"]
[BlackTeamCountry "POL"]
[TimeControl "40/5400+30:1800+30"]

{[%evp 11,80,26,23,7,10,19,19,8,13,-29,0,0,-8,0,11,-66,-57,-66,-64,-81,-77,-90,-90,-143,-90,-77,-76,-112,-118,-154,-157,-156,-141,-151,-138,-308,-307,-306,-300,-343,-341,-390,-379,-337,-305,-267,-216,-314,-322,-434,-418,-633,-602,-964,-951,-1029,-1131,-1117,-985,-1347,-902,-3043,-1767,-29987,-29988,-29988,-29989,-29989,-29990,-29990,-29990]} 1. e4 {[%emt 0:00:04]} c6 {[%emt 0:00:06]} 2. d4 {[%emt 0:00:16]} d5 {[%emt 0:00:06]} 3. exd5 {[%emt 0:00:16]} cxd5 {[%emt 0:00:06]} 4. Bd3 {[%emt 0:00:14]} Nf6 {[%emt 0:00:11]} 5. c3 {[%emt 0:01:01]} Bg4 {[%emt 0:00:17]} 6. Qb3 {[%emt 0:01:08]} Qc7 {[%emt 0:00:39]} 7. Ne2 {[%emt 0:02:32]} Bxe2 {[%emt 0:12:09]} 8. Bxe2 {[%emt 0:00:30][%cal Oc1f4]} e6 {[%emt 0:00:12]} 9. O-O {[%emt 0:06:29] The position is equal.} Bd6 {[%emt 0:00:24] Against Bf4} 10. f4 {[%emt 0:03:40]} O-O {[%emt 0:06:04]} 11. Bd3 {[%emt 0:02:58]} Nc6 {[%emt 0:00:55][%cal Bb8c6,Bc6e7,Be7d5][%mdl 32]} 12. Qd1 {[%emt 0:07:15]} Ne4 {[%emt 0:07:15]} 13. Bxe4 {[%emt 0:05:53]} (13. g3 $11) 13... dxe4 $15 {[%emt 0:00:06]} 14. Qe2 {[%emt 0:05:45]} f5 {[%emt 0:00:19]} 15. Be3 {[%emt 0:00:39]} Ne7 {[%emt 0:16:01]} 16. g3 {[%emt 0:10:09]} Nd5 {[%emt 0:03:18][%cal Og7g5]} 17. Nd2 {[%emt 0:02:57] [#]} (17. Bc1 $142) 17... b5 $1 {[%emt 0:01:42][%mdl 512]} 18. a4 {[%emt 0:04:31]} a6 {[%emt 0:09:11][%cal Og7g5]} 19. h4 {[%emt 0:04:49]} Qc6 {[%emt 0:00:30]} 20. Ra2 {[%emt 0:10:49]} bxa4 {[%emt 0:04:25] Black has more active pieces.} 21. Nc4 {[%emt 0:10:33]} Rab8 {[%emt 0:07:04][%cal Oa4a3]} 22. Nxd6 {[%emt 0:03:33]} Qxd6 {[%emt 0:00:06]} 23. Rxa4 {[%emt 0:01:08] This move loses the game for White.} (23. Bf2 $17) 23... Nxe3 $19 {[%emt 0:00:25]} 24. Qxe3 {[%emt 0:00:59]} Rxb2 {[%emt 0:00:06]} 25. Rf2 {[%emt 0:06:35] White is weak on the light squares} Rfb8 {[%emt 0:00:26]} 26. Ra2 {[%emt 0:01:09]} Rxa2 {[%emt 0:02:34]} 27. Rxa2 {[%emt 0:00:02][%mdl 4096] Endgame. KQR-KQR} Rb1+ {[%emt 0:00:24]} 28. Kh2 {[%emt 0:00:59]} Qc6 {[%emt 0:05:47] Hoping for ...h6.} 29. h5 {[%emt 0:03:38]} (29. Qe2 {might work better.}) 29... Rb3 {[%emt 0:02:05]} 30. Rc2 {[%emt 0:01:35]} a5 {[%emt 0:00:05]} 31. h6 {[%emt 0:00:30]} (31. d5 $142 exd5 (31... Qxd5 32. Rd2 $19) 32. Qa7) 31... a4 {[%emt 0:01:17] aiming for ...a3.} 32. d5 {[%emt 0:01:58]} exd5 {[%emt 0:00:44]} ({Weaker is} 32... Qxd5 33. Rd2 Qa8 34. Rd7 Rb2+ (34... gxh6 $2 {perishes.} 35. Qd4 $18) 35. Kh3 $11) 33. Qd4 {[%emt 0:01:41]} Qxh6+ {[%emt 0:00:48]} 34. Kg2 {[%emt 0:00:00]} Qc6 {[%emt 0:00:09] Strongly threatening ...a3.} 35. c4 {[%emt 0:00:47]} a3 {[%emt 0:00:28]} 36. Rd2 {[%emt 0:00:55]} h6 {[%emt 0:01:55] ( -> ...Qg6)} (36... dxc4 $2 {too greedy.} 37. Qd8+ Kf7 38. Rd7+ $18) 37. cxd5 {[%emt 0:00:12]} Qg6 {[%emt 0:00:06] Black mates.} 38. Qf2 {[%emt 0:00:47]} e3 {[%emt 0:00:10]} 39. Qf3 {[%emt 0:00:06]} exd2 {[%emt 0:00:14]} 40. Qxb3 {[%emt 0:00:01]} Qg4 {[%emt 0:00:23] Weighted Error Value: White=0.97/Black=0.38.  Loses game:     	White=1     	---        Mistake:       	White=4     	Black=1      Inaccurate:     	White=5     	Black=1      OK:         	White=5     	Black=17     Best:        	---       	Black=1} 0-1

[Event "45th FIDE Womens Olympiad 2024"]
[Site "Budapest"]
[Date "2024.09.12"]
[Round "2.15"]
[White "Kiolbasa, Oliwia"]
[Black "Tamarozi, Isabelle"]
[Result "1-0"]
[ECO "B31"]
[WhiteElo "2348"]
[BlackElo "2059"]
[Annotator "TA"]
[PlyCount "63"]
[EventDate "2024.09.05"]
[EventType "team-tourn"]
[EventCountry "HUN"]
[SourceTitle "playchess.com"]
[Source "ChessBase"]
[SourceQuality "1"]
[WhiteTeam "Poland"]
[BlackTeam "Brazil"]
[WhiteTeamCountry "POL"]
[BlackTeamCountry "BRA"]
[TimeControl "40/5400+30:1800+30"]

{[%evp 9,63,17,7,2,20,8,36,25,39,26,41,15,21,23,41,24,133,67,71,65,74,64,89,50,136,161,139,110,160,160,231,230,327,255,397,387,466,455,488,497,590,609,642,621,834,628,1590,1570,2289,2144,29980,29981,29996,29997,29997,29998]} 1. e4 {[%emt 0:00:06]} c5 {[%emt 0:00:13]} 2. Nf3 {[%emt 0:00:10]} Nc6 {[%emt 0:00:17]} 3. Bb5 {[%emt 0:00:28]} g6 {[%emt 0:00:19]} 4. Bxc6 {[%emt 0:00:34]} bxc6 {[%emt 0:00:09]} 5. d4 {[%emt 0:00:40]} cxd4 {[%emt 0:06:54]} 6. Qxd4 {[%emt 0:02:03]} f6 {[%emt 0:01:49] Black is weak on the dark squares} 7. O-O {[%emt 0:06:07]} Bg7 {[%emt 0:02:29]} 8. c4 {[%emt 0:03:18] White is slightly better.} Nh6 {[%emt 0:05:33]} 9. c5 {[%emt 0:01:17]} Nf7 {[%emt 0:05:37]} 10. Nc3 {[%emt 0:08:21]} O-O {[%emt 0:01:59]} 11. Qc4 {[%emt 0:03:28]} Qa5 {[%emt 0:10:16] And now ...Ba6 would win.} 12. b4 {[%emt 0:06:22][%cal Bb2b4,Bb4b5,Bb5b6][%mdl 32]} Ba6 {[%emt 0:05:18]} (12... Qc7 $11) 13. Qb3 {[%emt 0:01:02]} ({White should play} 13. Qxf7+ $16 Rxf7 14. bxa5) 13... Qc7 $14 {[%emt 0:00:21]} 14. Rd1 {[%emt 0:08:06]} Rab8 {[%emt 0:03:23]} 15. Be3 $36 {[%emt 0:07:09][%mdl 2048] White has good play.} Kh8 {[%emt 0:03:07]} 16. a4 {[%emt 0:04:45][%cal Ba2a4,Ba4a5][%mdl 32]} Bc8 {[%emt 0:20:52]} (16... f5 $14) 17. b5 $16 {[%emt 0:05:07]} d6 {[%emt 0:10:24]} 18. b6 {[%emt 0:03:29]} Qd7 {[%emt 0:09:03] [#]} (18... axb6 $142 19. cxb6 Qd7) 19. a5 $1 {[%emt 0:06:21] White is much more active.} a6 {[%emt 0:00:58]} (19... axb6 $16 {might work better.} 20. axb6 (20. cxb6 Ra8 $18) 20... f5) 20. Rac1 $18 {[%emt 0:03:04]} Qg4 {[%emt 0:02:44]} (20... Bb7 $142 21. Na4 Qg4) 21. Nd4 {[%emt 0:03:27]} Ne5 {[%emt 0:03:40]} (21... Nd8 {was necessary.} 22. Qc4 Re8 23. cxd6 Qd7 24. dxe7 Qxe7) 22. h3 {[%emt 0:06:52]} Qh5 {[%emt 0:01:37]} 23. Nce2 {[%emt 0:06:15]} dxc5 {[%emt 0:02:51]} 24. Nf4 {[%emt 0:01:11]} Qh4 {[%emt 0:01:36]} 25. Rxc5 {[%emt 0:00:59]} g5 {[%emt 0:00:51]} 26. Nfe6 {[%emt 0:01:37] A dynamic duo of knights.} ({Not} 26. Nxc6 gxf4 (26... Nxc6 $2 27. g3 $18) 27. Bxf4 (27. Nxb8 fxe3 28. fxe3 Bxh3 $19) 27... Nxc6 28. Bxb8 Bb7 $16 (28... Nxb8 29. b7 $14)) 26... Rg8 {[%emt 0:00:35]} 27. Nxg7 {[%emt 0:05:23]} Rxg7 {[%emt 0:00:20] [#]} 28. Rxe5 $1 {[%emt 0:01:20][%mdl 512]} fxe5 {[%emt 0:00:36]} (28... Bxh3 29. gxh3) 29. Nxc6 {[%emt 0:00:12] Threatening mate with Rd8+.} Rg8 {[%emt 0:00:37]} 30. Qd5 {[%emt 0:01:05] White mates.} Bxh3 {[%emt 0:00:24]} 31. Qxe5+ {[%emt 0:00:06]} Rg7 {[%emt 0:00:07]} 32. Qxb8+ {[%emt 0:00:06] Weighted Error Value: White=0.22 (precise) /Black=0.67.  Mistake:       	White=1     	Black=6      Inaccurate:     	White=2     	Black=1      OK:         	White=14    	Black=4      Best:        	White=1     	Black=1} 1-0

[Event "45th FIDE Womens Olympiad 2024"]
[Site "Budapest"]
[Date "2024.09.12"]
[Round "2.16"]
[White "Dias, Clara"]
[Black "Sliwicka, Alicja"]
[Result "0-1"]
[ECO "C55"]
[WhiteElo "1954"]
[BlackElo "2373"]
[Annotator "RC"]
[PlyCount "130"]
[EventDate "2024.09.05"]
[EventType "team-tourn"]
[EventCountry "HUN"]
[SourceTitle "playchess.com"]
[Source "ChessBase"]
[SourceQuality "1"]
[WhiteTeam "Brazil"]
[BlackTeam "Poland"]
[WhiteTeamCountry "BRA"]
[BlackTeamCountry "POL"]
[TimeControl "40/5400+30:1800+30"]

1. e4 {[%emt 0:00:01]} e5 {[%emt 0:00:08]} 2. Nf3 {[%emt 0:00:06]} Nc6 {[%emt 0:00:05]} 3. Bc4 {[%emt 0:00:05]} Nf6 {[%emt 0:00:08]} 4. d3 {[%emt 0:00:06]} Be7 {[%emt 0:00:07]} 5. c3 {[%emt 0:01:20]} O-O {[%emt 0:04:34]} 6. O-O {[%emt 0:02:12]} d5 {[%emt 0:00:28]} 7. exd5 {[%emt 0:00:14]} Nxd5 {[%emt 0:00:05]} 8. Re1 {[%emt 0:05:18]} Bg4 {[%emt 0:00:25]} 9. Nbd2 {[%emt 0:24:36]} Nb6 {[%emt 0:03:12]} 10. h3 {[%emt 0:06:12]} Nxc4 {[%emt 0:20:02]} 11. Nxc4 {[%emt 0:01:30]} Bxf3 {[%emt 0:02:06]} 12. Qxf3 {[%emt 0:00:07]} Bf6 {[%emt 0:01:46]} 13. a4 {[%emt 0:23:12]} Qd7 {[%emt 0:04:19]} 14. Bh6 {[%emt 0:04:46]} Rfe8 {[%emt 0:06:57]} 15. Rad1 {[%emt 0:02:04]} Qe6 {[%emt 0:04:57]} 16. Bc1 {[%emt 0:03:23]} Rad8 {[%emt 0:00:34]} 17. Nd2 {[%emt 0:03:51]} Qa2 {[%emt 0:08:31]} 18. Ne4 {[%emt 0:01:54]} Be7 {[%emt 0:00:31]} 19. Qg4 {[%emt 0:04:07]} g6 {[%emt 0:04:00]} 20. Ng3 {[%emt 0:00:18]} Kh8 {[%emt 0:02:34]} 21. Bh6 {[%emt 0:03:07]} Qxb2 {[%emt 0:07:30]} 22. Qc4 {[%emt 0:00:05]} Kg8 {[%emt 0:02:09]} 23. Re3 {[%emt 0:00:31]} Rd6 {[%emt 0:03:23]} 24. Ne4 {[%emt 0:00:24]} Re6 {[%emt 0:00:42]} 25. Rf3 {[%emt 0:01:07]} Qb6 {[%emt 0:01:25]} 26. Bg5 {[%emt 0:01:15]} Na5 {[%emt 0:00:38]} 27. Qa2 {[%emt 0:04:35]} Qb3 {[%emt 0:02:03]} 28. Qxb3 {[%emt 0:04:44]} Nxb3 {[%emt 0:00:05]} 29. Rb1 {[%emt 0:00:03]} Na5 {[%emt 0:03:26]} 30. Bf6 {[%emt 0:00:06]} Bd8 {[%emt 0:01:29]} 31. Rb5 {[%emt 0:00:53]} b6 {[%emt 0:00:42]} 32. Rd5 {[%emt 0:00:16]} Nc6 {[%emt 0:07:00]} 33. Rd7 {[%emt 0:00:37]} Be7 {[%emt 0:06:00]} 34. Rxc7 {[%emt 0:00:21]} Kf8 {[%emt 0:01:13]} 35. Ng5 {[%emt 0:01:36]} Bxf6 {[%emt 0:01:57]} 36. Nxh7+ {[%emt 0:02:11]} Kg7 {[%emt 0:00:02]} 37. Nxf6 {[%emt 0:00:07]} R8e7 {[%emt 0:01:09]} 38. Rxe7 {[%emt 0:00:43]} Nxe7 {[%emt 0:00:59]} 39. Ne4 {[%emt 0:00:57]} f5 {[%emt 0:00:20]} 40. Ng5 {[%emt 0:00:55]} Rc6 {[%emt 0:01:14]} 41. c4 {[%emt 0:30:27]} Rd6 {[%emt 0:31:14]} 42. Re3 {[%emt 0:00:27]} Nc6 {[%emt 0:00:11]} 43. f4 {[%emt 0:00:00]} exf4 {[%emt 0:00:00]} 44. Ne6+ {[%emt 0:00:00]} Kf7 {[%emt 0:00:00]} 45. Nxf4 {[%emt 0:00:00]} Nb4 {[%emt 0:00:00]} 46. h4 {[%emt 0:00:00]} Rd4 {[%emt 0:00:00]} 47. g3 {[%emt 0:00:00]} Nc2 {[%emt 0:00:00]} 48. Re2 {[%emt 0:00:00]} Nb4 {[%emt 0:00:00]} 49. Rd2 {[%emt 0:00:00]} a5 {[%emt 0:00:00]} 50. Kf2 {[%emt 0:00:00]} Rd8 {[%emt 0:00:00]} 51. d4 {[%emt 0:00:00]} Rc8 {[%emt 0:00:00]} 52. c5 {[%emt 0:04:06]} bxc5 {[%emt 0:00:00]} 53. dxc5 {[%emt 0:00:04]} Rxc5 {[%emt 0:00:00]} 54. Rd7+ {[%emt 0:00:05]} Ke8 {[%emt 0:00:00]} 55. Rg7 {[%emt 0:00:08]} Rc2+ {[%emt 0:00:00]} 56. Kf3 {[%emt 0:01:37]} Rc3+ {[%emt 0:00:00]} 57. Kg2 {[%emt 0:00:40]} Nc2 {[%emt 0:00:38]} 58. Rxg6 {[%emt 0:00:56]} Ne3+ {[%emt 0:00:40]} 59. Kg1 {[%emt 0:00:51]} Ng4 {[%emt 0:00:36]} 60. Ne2 {[%emt 0:00:07]} Ra3 {[%emt 0:02:02]} 61. h5 {[%emt 0:00:57]} Kf7 {[%emt 0:00:10]} 62. Ra6 {[%emt 0:00:34]} Rxa4 {[%emt 0:01:13]} 63. Kg2 {[%emt 0:00:33]} Ra2 {[%emt 0:01:57]} 64. Kf3 {[%emt 0:00:28]} a4 {[%emt 0:01:09]} 65. Nd4 {[%emt 0:00:23]} Rf2# {[%emt 0:00:06]} 0-1